[Event "Titled Tuesday Blitz April 05 Early 2022"]
[White "Decuigniere, Tom"]
[Black "Hoffmann, Asa"]
[WhiteFideId "26093820"]
[BlackFideId "2001470"]
[WhiteElo "1997"]
[BlackElo "2117"]
[Result "0-1"]
[Round "05"]
[TimeControl "180+1"]
[Date "2022.04.05"]
[WhiteClock "0:00:16"]
[BlackClock "0:00:35"]

1. e4 {[%clk 0:02:58]}  d6 {[%clk 0:02:57]} 2. d4 {[%clk 0:02:56]}  Nf6 {[%clk 0:02:57]} 3. Bd3 {[%clk 0:02:53]}  e5 {[%clk 0:02:56]} 4. c3 {[%clk 0:02:52]}  Nc6 {[%clk 0:02:56]} 5. Nf3 {[%clk 0:02:52]}  Bg4 {[%clk 0:02:54]} 6. Be3 {[%clk 0:02:49]}  d5 {[%clk 0:02:49]} 7. exd5 {[%clk 0:02:38]}  Nxd5 {[%clk 0:02:48]} 8. h3 {[%clk 0:02:36]}  Nxe3 {[%clk 0:02:46]} 9. fxe3 {[%clk 0:02:36]}  Bxf3 {[%clk 0:02:36]} 10. Qxf3 {[%clk 0:02:37]}  exd4 {[%clk 0:02:23]} 11. exd4 {[%clk 0:02:34]}  Qe7+ {[%clk 0:02:21]} 12. Kf2 {[%clk 0:02:13]}  O-O-O {[%clk 0:02:20]} 13. Nd2 {[%clk 0:02:09]}  g6 {[%clk 0:02:09]} 14. Rae1 {[%clk 0:02:08]}  Qd7 {[%clk 0:02:04]} 15. Ne4 {[%clk 0:02:06]}  f5 {[%clk 0:02:01]} 16. Ng5 {[%clk 0:01:45]}  Nxd4 {[%clk 0:01:49]} 17. cxd4 {[%clk 0:01:29]}  Qxd4+ {[%clk 0:01:48]} 18. Qe3 {[%clk 0:01:29]}  Qxd3 {[%clk 0:01:43]} 19. Nf7 {[%clk 0:01:25]}  Qxe3+ {[%clk 0:01:39]} 20. Rxe3 {[%clk 0:01:26]}  Bc5 {[%clk 0:01:38]} 21. Nxh8 {[%clk 0:01:19]}  Rxh8 {[%clk 0:01:35]} 22. Kf3 {[%clk 0:01:18]}  Bxe3 {[%clk 0:01:35]} 23. Kxe3 {[%clk 0:01:18]}  Re8+ {[%clk 0:01:33]} 24. Kd2 {[%clk 0:01:15]}  c5 {[%clk 0:01:31]} 25. g4 {[%clk 0:01:12]}  f4 {[%clk 0:01:30]} 26. g5 {[%clk 0:01:12]}  Re5 {[%clk 0:01:28]} 27. h4 {[%clk 0:01:12]}  Kc7 {[%clk 0:01:26]} 28. Rf1 {[%clk 0:01:11]}  Re4 {[%clk 0:01:26]} 29. Kd3 {[%clk 0:01:10]}  Rd4+ {[%clk 0:01:26]} 30. Kc3 {[%clk 0:01:09]}  Kd6 {[%clk 0:01:24]} 31. Re1 {[%clk 0:01:08]}  b5 {[%clk 0:01:23]} 32. Re8 {[%clk 0:01:04]}  a5 {[%clk 0:01:20]} 33. a3 {[%clk 0:00:51]}  b4+ {[%clk 0:01:20]} 34. axb4 {[%clk 0:00:52]}  axb4+ {[%clk 0:01:20]} 35. Kc2 {[%clk 0:00:45]}  Kd5 {[%clk 0:01:19]} 36. Rh8 {[%clk 0:00:44]}  f3 {[%clk 0:01:16]} 37. Rxh7 {[%clk 0:00:38]}  c4 {[%clk 0:01:09]} 38. Rf7 {[%clk 0:00:37]}  b3+ {[%clk 0:01:07]} 39. Kc1 {[%clk 0:00:30]}  Ke4 {[%clk 0:01:07]} 40. h5 {[%clk 0:00:28]}  gxh5 {[%clk 0:01:04]} 41. g6 {[%clk 0:00:29]}  Rd5 {[%clk 0:01:04]} 42. g7 {[%clk 0:00:27]}  Rg5 {[%clk 0:01:04]} 43. Kd2 {[%clk 0:00:27]}  Rg2+ {[%clk 0:00:58]} 44. Ke1 {[%clk 0:00:25]}  h4 {[%clk 0:00:57]} 45. Re7+ {[%clk 0:00:25]}  Kd3 {[%clk 0:00:56]} 46. Kf1 {[%clk 0:00:24]}  h3 {[%clk 0:00:55]} 47. Rd7+ {[%clk 0:00:19]}  Kc2 {[%clk 0:00:51]} 48. g8=Q {[%clk 0:00:17]}  Rxg8 {[%clk 0:00:50]} 49. Rh7 {[%clk 0:00:17]}  Kxb2 {[%clk 0:00:49]} 50. Rxh3 {[%clk 0:00:17]}  c3 {[%clk 0:00:49]} 51. Rxf3 {[%clk 0:00:18]}  c2 {[%clk 0:00:49]} 52. Ke2 {[%clk 0:00:17]}  c1=Q {[%clk 0:00:46]} 53. Rd3 {[%clk 0:00:13]}  Re8+ {[%clk 0:00:45]} 54. Kf3 {[%clk 0:00:13]}  Qf1+ {[%clk 0:00:44]} 55. Kg4 {[%clk 0:00:12]}  Qxd3 {[%clk 0:00:44]} 56. Kf4 {[%clk 0:00:13]}  Ka1 {[%clk 0:00:43]} 57. Kg4 {[%clk 0:00:12]}  b2 {[%clk 0:00:42]} 58. Kg5 {[%clk 0:00:13]}  b1=N {[%clk 0:00:41]} 59. Kf4 {[%clk 0:00:14]}  Nc3 {[%clk 0:00:40]} 60. Kg5 {[%clk 0:00:14]}  Qd5+ {[%clk 0:00:39]} 61. Kf4 {[%clk 0:00:15]}  Qe5+ {[%clk 0:00:38]} 62. Kf3 {[%clk 0:00:15]}  Rf8+ {[%clk 0:00:38]} 63. Kg4 {[%clk 0:00:16]}  Qg7+ {[%clk 0:00:36]} 64. Kh4 {[%clk 0:00:16]}  Nb1 {[%clk 0:00:35]} 65. Kh3 {[%clk 0:00:16]}  Rh8# {[%clk 0:00:35]} 0-1


[Site "https://www.chess.com"]

[Event "Titled Tuesday Blitz April 05 Early 2022"]
[White "Dilmukhametov, Artur"]
[Black "Hernandez Bermudez, Ulises Eduardo"]
[WhiteFideId "24179922"]
[BlackFideId "3902510"]
[WhiteElo "2244"]
[BlackElo "2056"]
[Result "0-1"]
[Round "05"]
[TimeControl "180+1"]
[Date "2022.04.05"]
[WhiteClock "0:02:00"]
[BlackClock "0:01:52"]

1. d4 {[%clk 0:02:37]}  Nf6 {[%clk 0:02:59]} 2. Nc3 {[%clk 0:02:35]}  d5 {[%clk 0:02:55]} 3. Bf4 {[%clk 0:02:33]}  g6 {[%clk 0:02:50]} 4. Nf3 {[%clk 0:02:33]}  Bg7 {[%clk 0:02:50]} 5. e3 {[%clk 0:02:33]}  O-O {[%clk 0:02:50]} 6. Bd3 {[%clk 0:02:33]}  Nbd7 {[%clk 0:02:50]} 7. Qd2 {[%clk 0:02:33]}  c5 {[%clk 0:02:49]} 8. O-O-O {[%clk 0:02:30]}  c4 {[%clk 0:02:49]} 9. Be2 {[%clk 0:02:30]}  a6 {[%clk 0:02:47]} 10. h4 {[%clk 0:02:30]}  h5 {[%clk 0:02:46]} 11. Rdg1 {[%clk 0:02:28]}  b5 {[%clk 0:02:45]} 12. Ng5 {[%clk 0:02:24]}  Nb6 {[%clk 0:02:30]} 13. g4 {[%clk 0:02:20]}  Bxg4 {[%clk 0:02:10]} 14. Bxg4 {[%clk 0:02:17]}  Nxg4 {[%clk 0:02:06]} 15. f3 {[%clk 0:02:17]}  Nf6 {[%clk 0:02:05]} 16. Be5 {[%clk 0:02:13]}  b4 {[%clk 0:02:02]} 17. Ne2 {[%clk 0:02:10]}  b3 {[%clk 0:01:56]} 18. axb3 {[%clk 0:02:08]}  cxb3 {[%clk 0:01:55]} 19. c3 {[%clk 0:02:08]}  Nc4 {[%clk 0:01:55]} 20. Qd3 {[%clk 0:02:05]}  Qa5 {[%clk 0:01:53]} 21. Kd1 {[%clk 0:02:00]}  Nxb2+ {[%clk 0:01:52]} 0-1


[Site "https://www.chess.com"]

[Event "Titled Tuesday Blitz April 05 Early 2022"]
[White "Domingo Nunez, Alejandro"]
[Black "Sadovsky, Artem"]
[WhiteFideId "22245561"]
[BlackFideId "4155840"]
[WhiteElo "2215"]
[BlackElo "2314"]
[Result "0-1"]
[Round "05"]
[TimeControl "180+1"]
[Date "2022.04.05"]
[WhiteClock "0:00:05"]
[BlackClock "0:00:08"]

1. Nf3 {[%clk 0:02:57]}  g6 {[%clk 0:02:59]} 2. e4 {[%clk 0:02:54]}  Bg7 {[%clk 0:02:59]} 3. d4 {[%clk 0:02:55]}  d6 {[%clk 0:02:59]} 4. h3 {[%clk 0:02:54]}  e5 {[%clk 0:02:59]} 5. dxe5 {[%clk 0:02:49]}  dxe5 {[%clk 0:03:00]} 6. Qxd8+ {[%clk 0:02:49]}  Kxd8 {[%clk 0:03:01]} 7. Bc4 {[%clk 0:02:50]}  f6 {[%clk 0:03:02]} 8. Be3 {[%clk 0:02:38]}  Nd7 {[%clk 0:03:02]} 9. Nc3 {[%clk 0:02:20]}  Bh6 {[%clk 0:02:57]} 10. Bxg8 {[%clk 0:01:56]}  Bxe3 {[%clk 0:02:56]} 11. Be6 {[%clk 0:01:56]}  Bc5 {[%clk 0:02:37]} 12. O-O-O {[%clk 0:01:24]}  Re8 {[%clk 0:02:31]} 13. Bxd7 {[%clk 0:00:49]}  Bxd7 {[%clk 0:02:30]} 14. Rd5 {[%clk 0:00:49]}  Bxf2 {[%clk 0:02:11]} 15. Rf1 {[%clk 0:00:49]}  Be3+ {[%clk 0:02:11]} 16. Kb1 {[%clk 0:00:50]}  c6 {[%clk 0:01:59]} 17. Rd3 {[%clk 0:00:50]}  Bc5 {[%clk 0:01:53]} 18. Nd2 {[%clk 0:00:45]}  Ke7 {[%clk 0:01:39]} 19. Nb3 {[%clk 0:00:40]}  Bb6 {[%clk 0:01:34]} 20. Na4 {[%clk 0:00:38]}  Rad8 {[%clk 0:01:31]} 21. Rdf3 {[%clk 0:00:36]}  Rf8 {[%clk 0:01:20]} 22. g4 {[%clk 0:00:36]}  Bc8 {[%clk 0:01:13]} 23. Nac5 {[%clk 0:00:36]}  Bc7 {[%clk 0:01:10]} 24. a4 {[%clk 0:00:32]}  b6 {[%clk 0:01:09]} 25. Nd3 {[%clk 0:00:32]}  c5 {[%clk 0:01:08]} 26. Nd2 {[%clk 0:00:28]}  Bb7 {[%clk 0:01:04]} 27. Re1 {[%clk 0:00:22]}  Rd4 {[%clk 0:00:58]} 28. b3 {[%clk 0:00:18]}  c4 {[%clk 0:00:51]} 29. bxc4 {[%clk 0:00:19]}  Rdd8 {[%clk 0:00:37]} 30. Kc1 {[%clk 0:00:18]}  a5 {[%clk 0:00:34]} 31. c5 {[%clk 0:00:17]}  Rd4 {[%clk 0:00:26]} 32. cxb6 {[%clk 0:00:12]}  Bxb6 {[%clk 0:00:27]} 33. Ref1 {[%clk 0:00:12]}  Bxe4 {[%clk 0:00:22]} 34. Nxe4 {[%clk 0:00:12]}  Rxe4 {[%clk 0:00:23]} 35. Nb2 {[%clk 0:00:10]}  Be3+ {[%clk 0:00:20]} 36. Kb1 {[%clk 0:00:10]}  Rb8 {[%clk 0:00:16]} 37. c3 {[%clk 0:00:10]}  Rf4 {[%clk 0:00:14]} 38. Kc2 {[%clk 0:00:09]}  Rxf3 {[%clk 0:00:14]} 39. Rxf3 {[%clk 0:00:10]}  Bb6 {[%clk 0:00:12]} 40. Nc4 {[%clk 0:00:11]}  Bc7 {[%clk 0:00:12]} 41. Ne3 {[%clk 0:00:09]}  Ke6 {[%clk 0:00:12]} 42. Kd3 {[%clk 0:00:08]}  Rd8+ {[%clk 0:00:09]} 43. Kc4 {[%clk 0:00:09]}  e4 {[%clk 0:00:10]} 44. Rf1 {[%clk 0:00:08]}  Rd3 {[%clk 0:00:08]} 45. Nc2 {[%clk 0:00:08]}  Be5 {[%clk 0:00:08]} 46. Nd4+ {[%clk 0:00:09]}  Bxd4 {[%clk 0:00:08]} 47. cxd4 {[%clk 0:00:10]}  f5 {[%clk 0:00:08]} 48. gxf5+ {[%clk 0:00:10]}  gxf5 {[%clk 0:00:08]} 49. h4 {[%clk 0:00:08]}  Rd2 {[%clk 0:00:07]} 50. Kc5 {[%clk 0:00:07]}  Rc2+ {[%clk 0:00:06]} 51. Kb5 {[%clk 0:00:07]}  e3 {[%clk 0:00:07]} 52. Rf3 {[%clk 0:00:06]}  e2 {[%clk 0:00:06]} 53. Re3+ {[%clk 0:00:06]}  Kd5 {[%clk 0:00:07]} 54. Kxa5 {[%clk 0:00:06]}  Kxd4 {[%clk 0:00:07]} 55. Re7 {[%clk 0:00:07]}  f4 {[%clk 0:00:07]} 56. Kb6 {[%clk 0:00:07]}  f3 {[%clk 0:00:08]} 57. Rxe2 {[%clk 0:00:05]}  fxe2 {[%clk 0:00:08]} 0-1


[Site "https://www.chess.com"]

[Event "Titled Tuesday Blitz April 05 Early 2022"]
[White "Dukic, Zachary"]
[Black "Kalogridis, Antonios"]
[WhiteFideId "2617188"]
[BlackFideId "25833901"]
[WhiteElo "2086"]
[BlackElo "1596"]
[Result "0-1"]
[Round "05"]
[TimeControl "180+1"]
[Date "2022.04.05"]
[WhiteClock "0:00:01"]
[BlackClock "0:00:18"]

1. e4 {[%clk 0:03:00]}  c6 {[%clk 0:03:00]} 2. d4 {[%clk 0:03:00]}  d5 {[%clk 0:03:00]} 3. Nd2 {[%clk 0:03:01]}  g6 {[%clk 0:02:59]} 4. Ngf3 {[%clk 0:02:58]}  Bg7 {[%clk 0:03:00]} 5. c3 {[%clk 0:02:58]}  dxe4 {[%clk 0:03:00]} 6. Nxe4 {[%clk 0:02:59]}  Nf6 {[%clk 0:03:00]} 7. Bd3 {[%clk 0:02:59]}  O-O {[%clk 0:02:59]} 8. O-O {[%clk 0:02:59]}  Nxe4 {[%clk 0:02:59]} 9. Bxe4 {[%clk 0:02:59]}  Nd7 {[%clk 0:03:00]} 10. Re1 {[%clk 0:02:58]}  Nf6 {[%clk 0:03:00]} 11. Bc2 {[%clk 0:02:59]}  Bg4 {[%clk 0:02:59]} 12. h3 {[%clk 0:02:59]}  Bxf3 {[%clk 0:02:57]} 13. Qxf3 {[%clk 0:03:00]}  a5 {[%clk 0:02:57]} 14. Bf4 {[%clk 0:02:48]}  Nd5 {[%clk 0:02:56]} 15. Bh2 {[%clk 0:02:43]}  a4 {[%clk 0:02:56]} 16. Rad1 {[%clk 0:02:24]}  b5 {[%clk 0:02:53]} 17. a3 {[%clk 0:02:12]}  Qd7 {[%clk 0:02:49]} 18. Bb1 {[%clk 0:02:11]}  Nb6 {[%clk 0:02:49]} 19. Ba2 {[%clk 0:02:10]}  e6 {[%clk 0:02:48]} 20. Qe2 {[%clk 0:01:47]}  Nd5 {[%clk 0:02:33]} 21. g4 {[%clk 0:01:29]}  Bh6 {[%clk 0:02:16]} 22. Qe4 {[%clk 0:01:21]}  Rae8 {[%clk 0:02:11]} 23. Bg3 {[%clk 0:01:19]}  f5 {[%clk 0:02:10]} 24. Qe5 {[%clk 0:01:12]}  fxg4 {[%clk 0:01:56]} 25. hxg4 {[%clk 0:01:09]}  Bf4 {[%clk 0:01:54]} 26. Qe4 {[%clk 0:00:41]}  Bxg3 {[%clk 0:01:50]} 27. fxg3 {[%clk 0:00:41]}  Qd6 {[%clk 0:01:51]} 28. Kg2 {[%clk 0:00:40]}  Nf6 {[%clk 0:01:28]} 29. Qxe6+ {[%clk 0:00:30]}  Rxe6 {[%clk 0:01:19]} 30. Rxe6 {[%clk 0:00:30]}  Qb8 {[%clk 0:00:46]} 31. Re8+ {[%clk 0:00:28]}  Kg7 {[%clk 0:00:46]} 32. Rxb8 {[%clk 0:00:28]}  Rxb8 {[%clk 0:00:46]} 33. Re1 {[%clk 0:00:28]}  Nxg4 {[%clk 0:00:45]} 34. Re7+ {[%clk 0:00:27]}  Kh6 {[%clk 0:00:44]} 35. Kf3 {[%clk 0:00:14]}  Kg5 {[%clk 0:00:33]} 36. Rxh7 {[%clk 0:00:03]}  Rf8+ {[%clk 0:00:28]} 37. Rf7 {[%clk 0:00:03]}  Re8 {[%clk 0:00:28]} 38. Rc7 {[%clk 0:00:01]}  Re3+ {[%clk 0:00:29]} 39. Kg2 {[%clk 0:00:01]}  Re2+ {[%clk 0:00:30]} 40. Kf3 {[%clk 0:00:01]}  Re3+ {[%clk 0:00:31]} 41. Kg2 {[%clk 0:00:01]}  Re2+ {[%clk 0:00:28]} 42. Kf3 {[%clk 0:00:02]}  Rxb2 {[%clk 0:00:29]} 43. Be6 {[%clk 0:00:01]}  Nh2+ {[%clk 0:00:24]} 44. Ke4 {[%clk 0:00:01]}  Nf1 {[%clk 0:00:25]} 45. Kd3 {[%clk 0:00:01]}  Rd2+ {[%clk 0:00:24]} 46. Ke4 {[%clk 0:00:02]}  Nxg3+ {[%clk 0:00:24]} 47. Kf3 {[%clk 0:00:02]}  Rd3+ {[%clk 0:00:20]} 48. Kf2 {[%clk 0:00:01]}  Rxc3 {[%clk 0:00:18]} 49. d5 {[%clk 0:00:01]}  cxd5 {[%clk 0:00:18]} 0-1


[Site "https://www.chess.com"]

[Event "Titled Tuesday Blitz April 05 Early 2022"]
[White "Estrada Nieto, Julian"]
[Black "Iskusnyh, Sergei"]
[WhiteFideId "5101018"]
[BlackFideId "4120027"]
[WhiteElo "2252"]
[BlackElo "2492"]
[Result "0-1"]
[Round "05"]
[TimeControl "180+1"]
[Date "2022.04.05"]
[WhiteClock "0:00:02"]
[BlackClock "0:00:20"]

1. e4 {[%clk 0:03:00]}  e6 {[%clk 0:02:58]} 2. d4 {[%clk 0:03:00]}  d5 {[%clk 0:02:57]} 3. Nd2 {[%clk 0:03:00]}  c5 {[%clk 0:02:53]} 4. exd5 {[%clk 0:03:00]}  exd5 {[%clk 0:02:54]} 5. Ngf3 {[%clk 0:03:00]}  Nc6 {[%clk 0:02:54]} 6. Bb5 {[%clk 0:03:00]}  cxd4 {[%clk 0:02:53]} 7. Nxd4 {[%clk 0:02:56]}  Bd7 {[%clk 0:02:51]} 8. Qe2+ {[%clk 0:02:45]}  Be7 {[%clk 0:02:48]} 9. N2f3 {[%clk 0:02:44]}  Nf6 {[%clk 0:02:43]} 10. O-O {[%clk 0:02:32]}  O-O {[%clk 0:02:42]} 11. Bg5 {[%clk 0:02:24]}  Re8 {[%clk 0:02:37]} 12. Bxc6 {[%clk 0:02:09]}  bxc6 {[%clk 0:02:35]} 13. Qd3 {[%clk 0:02:04]}  h6 {[%clk 0:02:17]} 14. Bh4 {[%clk 0:02:01]}  Ne4 {[%clk 0:02:09]} 15. Bxe7 {[%clk 0:02:00]}  Qxe7 {[%clk 0:02:10]} 16. Rfe1 {[%clk 0:01:39]}  Qf6 {[%clk 0:02:08]} 17. b4 {[%clk 0:01:31]}  a5 {[%clk 0:01:57]} 18. a3 {[%clk 0:01:30]}  Bg4 {[%clk 0:01:42]} 19. Rab1 {[%clk 0:01:17]}  axb4 {[%clk 0:01:40]} 20. axb4 {[%clk 0:01:16]}  Bh5 {[%clk 0:01:29]} 21. h3 {[%clk 0:01:11]}  Bg6 {[%clk 0:01:28]} 22. Qe3 {[%clk 0:00:57]}  Nd6 {[%clk 0:01:21]} 23. Qc3 {[%clk 0:00:47]}  Nc4 {[%clk 0:01:18]} 24. Rxe8+ {[%clk 0:00:43]}  Rxe8 {[%clk 0:01:17]} 25. Re1 {[%clk 0:00:44]}  Ra8 {[%clk 0:01:07]} 26. b5 {[%clk 0:00:23]}  c5 {[%clk 0:00:57]} 27. Ne2 {[%clk 0:00:22]}  Qxc3 {[%clk 0:00:47]} 28. Nxc3 {[%clk 0:00:22]}  d4 {[%clk 0:00:47]} 29. Ne4 {[%clk 0:00:14]}  Rc8 {[%clk 0:00:27]} 30. Nh4 {[%clk 0:00:11]}  Bh7 {[%clk 0:00:25]} 31. f3 {[%clk 0:00:09]}  g5 {[%clk 0:00:24]} 32. Nf6+ {[%clk 0:00:04]}  Kg7 {[%clk 0:00:24]} 33. Nxh7 {[%clk 0:00:04]}  gxh4 {[%clk 0:00:24]} 34. Re4 {[%clk 0:00:01]}  Kxh7 {[%clk 0:00:23]} 35. Rxh4 {[%clk 0:00:02]}  Ne3 {[%clk 0:00:22]} 36. Rh5 {[%clk 0:00:02]}  Nxc2 {[%clk 0:00:21]} 37. b6 {[%clk 0:00:02]}  c4 {[%clk 0:00:20]} 0-1


[Site "https://www.chess.com"]

[Event "Titled Tuesday Blitz April 05 Early 2022"]
[White "Ezat, Mohamed"]
[Black "Buscar, Michael"]
[WhiteFideId "10600906"]
[BlackFideId "2603616"]
[WhiteElo "2386"]
[BlackElo "2010"]
[Result "1-0"]
[Round "05"]
[TimeControl "180+1"]
[Date "2022.04.05"]
[WhiteClock "0:00:40"]
[BlackClock "0:00:14"]

1. d4 {[%clk 0:02:55]}  d5 {[%clk 0:02:58]} 2. c4 {[%clk 0:02:55]}  e6 {[%clk 0:02:58]} 3. Nc3 {[%clk 0:02:55]}  Nf6 {[%clk 0:02:56]} 4. cxd5 {[%clk 0:02:55]}  exd5 {[%clk 0:02:56]} 5. Bg5 {[%clk 0:02:56]}  Be7 {[%clk 0:02:53]} 6. e3 {[%clk 0:02:55]}  a6 {[%clk 0:02:53]} 7. Bd3 {[%clk 0:02:55]}  O-O {[%clk 0:02:51]} 8. Nge2 {[%clk 0:02:53]}  Nbd7 {[%clk 0:02:50]} 9. O-O {[%clk 0:02:53]}  Re8 {[%clk 0:02:49]} 10. Nf4 {[%clk 0:02:53]}  c6 {[%clk 0:02:49]} 11. Qc2 {[%clk 0:02:52]}  Nf8 {[%clk 0:02:49]} 12. Rab1 {[%clk 0:02:47]}  g6 {[%clk 0:02:46]} 13. b4 {[%clk 0:02:46]}  Ne6 {[%clk 0:02:46]} 14. Nxe6 {[%clk 0:02:46]}  Bxe6 {[%clk 0:02:44]} 15. Na4 {[%clk 0:02:46]}  Nd7 {[%clk 0:02:20]} 16. Bxe7 {[%clk 0:02:35]}  Qxe7 {[%clk 0:02:20]} 17. Nc5 {[%clk 0:02:36]}  b5 {[%clk 0:02:04]} 18. Rbc1 {[%clk 0:02:23]}  Nxc5 {[%clk 0:01:42]} 19. Qxc5 {[%clk 0:02:21]}  Qxc5 {[%clk 0:01:42]} 20. Rxc5 {[%clk 0:02:21]}  Bd7 {[%clk 0:01:43]} 21. a4 {[%clk 0:02:16]}  Kf8 {[%clk 0:01:39]} 22. Rfc1 {[%clk 0:02:06]}  f5 {[%clk 0:01:35]} 23. Kf1 {[%clk 0:02:05]}  Ke7 {[%clk 0:01:35]} 24. Ke2 {[%clk 0:02:04]}  Kd6 {[%clk 0:01:35]} 25. f3 {[%clk 0:02:03]}  Reb8 {[%clk 0:01:29]} 26. Ra1 {[%clk 0:02:00]}  Re8 {[%clk 0:01:12]} 27. Kd2 {[%clk 0:01:59]}  Rab8 {[%clk 0:01:12]} 28. g3 {[%clk 0:01:53]}  Re7 {[%clk 0:01:11]} 29. axb5 {[%clk 0:01:47]}  axb5 {[%clk 0:01:09]} 30. Ra6 {[%clk 0:01:47]}  Rbe8 {[%clk 0:00:58]} 31. Bxb5 {[%clk 0:01:35]}  Rxe3 {[%clk 0:00:55]} 32. Rcxc6+ {[%clk 0:01:30]}  Bxc6 {[%clk 0:00:39]} 33. Rxc6+ {[%clk 0:01:29]}  Kd7 {[%clk 0:00:39]} 34. Rc3+ {[%clk 0:01:29]}  Kd6 {[%clk 0:00:33]} 35. Rxe3 {[%clk 0:01:28]}  Rb8 {[%clk 0:00:34]} 36. Be2 {[%clk 0:01:23]}  Rxb4 {[%clk 0:00:34]} 37. Kc3 {[%clk 0:01:22]}  Ra4 {[%clk 0:00:32]} 38. Bd1 {[%clk 0:01:21]}  Rc4+ {[%clk 0:00:27]} 39. Kd3 {[%clk 0:01:20]}  Rc1 {[%clk 0:00:27]} 40. Re1 {[%clk 0:01:18]}  Ra1 {[%clk 0:00:25]} 41. Kd2 {[%clk 0:01:16]}  Kd7 {[%clk 0:00:20]} 42. Bc2 {[%clk 0:01:12]}  Ra3 {[%clk 0:00:19]} 43. Re3 {[%clk 0:01:06]}  Ra1 {[%clk 0:00:19]} 44. Re1 {[%clk 0:00:58]}  Ra3 {[%clk 0:00:18]} 45. f4 {[%clk 0:00:58]}  Rf3 {[%clk 0:00:18]} 46. Bd3 {[%clk 0:00:55]}  Rf2+ {[%clk 0:00:18]} 47. Re2 {[%clk 0:00:54]}  Rf3 {[%clk 0:00:18]} 48. Rg2 {[%clk 0:00:52]}  g5 {[%clk 0:00:15]} 49. Ke2 {[%clk 0:00:42]}  g4 {[%clk 0:00:14]} 50. Rg1 {[%clk 0:00:42]}  Ke6 {[%clk 0:00:14]} 51. Rb1 {[%clk 0:00:40]} 1-0


[Site "https://www.chess.com"]

[Event "Titled Tuesday Blitz April 05 Early 2022"]
[White "Fernandez Siles, Luis"]
[Black "Antonio, Jorge Carlos"]
[WhiteFideId "2209420"]
[BlackFideId "113190"]
[WhiteElo "2212"]
[BlackElo "2247"]
[Result "1-0"]
[Round "05"]
[TimeControl "180+1"]
[Date "2022.04.05"]
[WhiteClock "0:00:25"]
[BlackClock "0:00:23"]

1. e4 {[%clk 0:03:00]}  c5 {[%clk 0:02:59]} 2. c3 {[%clk 0:03:00]}  e6 {[%clk 0:02:57]} 3. d4 {[%clk 0:02:59]}  cxd4 {[%clk 0:02:56]} 4. cxd4 {[%clk 0:02:59]}  d5 {[%clk 0:02:55]} 5. e5 {[%clk 0:02:58]}  Ne7 {[%clk 0:02:43]} 6. Nc3 {[%clk 0:02:58]}  Ng6 {[%clk 0:02:41]} 7. Nf3 {[%clk 0:02:55]}  Bb4 {[%clk 0:02:40]} 8. h4 {[%clk 0:02:41]}  Ne7 {[%clk 0:02:36]} 9. h5 {[%clk 0:02:37]}  h6 {[%clk 0:02:33]} 10. Bd3 {[%clk 0:02:36]}  Nbc6 {[%clk 0:02:33]} 11. Be3 {[%clk 0:02:26]}  Qb6 {[%clk 0:02:32]} 12. O-O {[%clk 0:02:14]}  Nf5 {[%clk 0:02:28]} 13. Bxf5 {[%clk 0:02:04]}  exf5 {[%clk 0:02:26]} 14. Nxd5 {[%clk 0:02:02]}  Qa5 {[%clk 0:02:22]} 15. Nf4 {[%clk 0:01:53]}  Be6 {[%clk 0:02:17]} 16. a3 {[%clk 0:01:28]}  Be7 {[%clk 0:02:12]} 17. Nxe6 {[%clk 0:01:24]}  fxe6 {[%clk 0:02:10]} 18. Qb3 {[%clk 0:01:24]}  Qd5 {[%clk 0:02:04]} 19. Qxd5 {[%clk 0:01:15]}  exd5 {[%clk 0:02:01]} 20. b4 {[%clk 0:01:14]}  Nd8 {[%clk 0:01:57]} 21. Rfc1 {[%clk 0:01:12]}  Ne6 {[%clk 0:01:57]} 22. g3 {[%clk 0:01:08]}  Kd7 {[%clk 0:01:57]} 23. Ne1 {[%clk 0:01:08]}  Rhc8 {[%clk 0:01:52]} 24. Nd3 {[%clk 0:01:08]}  b6 {[%clk 0:01:48]} 25. a4 {[%clk 0:01:04]}  Rc4 {[%clk 0:01:45]} 26. a5 {[%clk 0:00:58]}  b5 {[%clk 0:01:39]} 27. Rxc4 {[%clk 0:00:54]}  bxc4 {[%clk 0:01:36]} 28. Nc5+ {[%clk 0:00:54]}  Bxc5 {[%clk 0:01:32]} 29. bxc5 {[%clk 0:00:52]}  Rb8 {[%clk 0:01:29]} 30. f4 {[%clk 0:00:52]}  Rb3 {[%clk 0:01:17]} 31. Kf2 {[%clk 0:00:51]}  Rd3 {[%clk 0:01:12]} 32. Rb1 {[%clk 0:00:47]}  Kc7 {[%clk 0:01:10]} 33. a6 {[%clk 0:00:47]}  Rb3 {[%clk 0:01:03]} 34. Rg1 {[%clk 0:00:42]}  Rb2+ {[%clk 0:00:57]} 35. Kf3 {[%clk 0:00:41]}  Rb3 {[%clk 0:00:56]} 36. Ke2 {[%clk 0:00:38]}  Rb2+ {[%clk 0:00:55]} 37. Kf3 {[%clk 0:00:35]}  Rb3 {[%clk 0:00:54]} 38. Rd1 {[%clk 0:00:35]}  Kc6 {[%clk 0:00:52]} 39. g4 {[%clk 0:00:35]}  fxg4+ {[%clk 0:00:51]} 40. Ke2 {[%clk 0:00:34]}  Rb2+ {[%clk 0:00:47]} 41. Rd2 {[%clk 0:00:34]}  Rxd2+ {[%clk 0:00:46]} 42. Kxd2 {[%clk 0:00:34]}  g3 {[%clk 0:00:44]} 43. f5 {[%clk 0:00:34]}  Nd8 {[%clk 0:00:31]} 44. Ke2 {[%clk 0:00:33]}  c3 {[%clk 0:00:30]} 45. Kf3 {[%clk 0:00:32]}  c2 {[%clk 0:00:28]} 46. Kxg3 {[%clk 0:00:32]}  Kb5 {[%clk 0:00:29]} 47. Kf4 {[%clk 0:00:31]}  Kc4 {[%clk 0:00:28]} 48. e6 {[%clk 0:00:31]}  Nc6 {[%clk 0:00:27]} 49. f6 {[%clk 0:00:29]}  gxf6 {[%clk 0:00:26]} 50. Kf5 {[%clk 0:00:29]}  Nxd4+ {[%clk 0:00:26]} 51. Kxf6 {[%clk 0:00:29]}  Nc6 {[%clk 0:00:22]} 52. Bxh6 {[%clk 0:00:27]}  d4 {[%clk 0:00:22]} 53. Bg5 {[%clk 0:00:26]}  d3 {[%clk 0:00:21]} 54. h6 {[%clk 0:00:24]}  Kc3 {[%clk 0:00:21]} 55. h7 {[%clk 0:00:24]}  d2 {[%clk 0:00:21]} 56. Bxd2+ {[%clk 0:00:21]}  Kxd2 {[%clk 0:00:21]} 57. h8=Q {[%clk 0:00:21]}  c1=Q {[%clk 0:00:22]} 58. Qh6+ {[%clk 0:00:21]}  Kc2 {[%clk 0:00:21]} 59. Qxc1+ {[%clk 0:00:22]}  Kxc1 {[%clk 0:00:21]} 60. e7 {[%clk 0:00:23]}  Nxe7 {[%clk 0:00:20]} 61. Kxe7 {[%clk 0:00:24]}  Kc2 {[%clk 0:00:20]} 62. c6 {[%clk 0:00:24]}  Kb3 {[%clk 0:00:21]} 63. c7 {[%clk 0:00:25]}  Kb4 {[%clk 0:00:22]} 64. c8=Q {[%clk 0:00:25]}  Ka5 {[%clk 0:00:23]} 65. Qb7 {[%clk 0:00:25]} 1-0


[Site "https://www.chess.com"]